[Event "SS Manhem Chess Week 2022: Goteborg Open"]
[Site "Schackcentrum, Vegagatan 20, Gothenburg, Sweden"]
[Date "2022.08.12"]
[Round "1.5"]
[White "Imani Lasaki, Hamed"]
[Black "Wahlstrom, Lennart"]
[Result "0-1"]
[TimeControl "15 minutes + 5 seconds per move from move one (Round 1 - 4) / 90 minutes + 30 seconds per move from move one (Round 5 - 8)"]
[WhiteFideId "1766970"]
[BlackFideId "1706829"]
[WhiteElo "1577"]
[BlackElo "2115"]

1. e4 {[%clk 00:15:01]} {[%emt 00:00:04]} e5 {[%clk 00:00:00]} {[%emt
00:00:05]} 2. Nf3 {[%clk 00:00:00]} {[%emt 00:00:06]} Nc6 {[%clk 00:00:00]} 3.
Bc4 {[%clk 00:14:56]} {[%emt 00:00:42]} Nf6 {[%clk 00:15:07]} {[%emt 00:00:03]}
4. Ng5 {[%clk 00:14:35]} {[%emt 00:00:26]} d5 {[%clk 00:15:10]} {[%emt
00:00:02]} 5. exd5 {[%clk 00:14:17]} {[%emt 00:00:24]} Na5 {[%clk 00:15:13]}
{[%emt 00:00:02]} 6. Qe2 {[%clk 00:13:49]} {[%emt 00:00:33]} Nxc4 {[%clk
00:14:56]} {[%emt 00:00:21]} 7. Qxc4 {[%clk 00:13:51]} {[%emt 00:00:03]} Nxd5
{[%clk 00:14:11]} {[%emt 00:00:50]} 8. d4 {[%clk 00:13:22]} {[%emt 00:00:34]}
Be7 {[%clk 00:13:20]} {[%emt 00:00:56]} 9. Ne4 {[%clk 00:10:57]} {[%emt
00:02:31]} Nb6 {[%clk 00:12:50]} {[%emt 00:00:35]} 10. Qb5+ {[%clk 00:10:10]}
{[%emt 00:00:52]} c6 {[%clk 00:12:52]} {[%emt 00:00:04]} 11. Qxe5 {[%clk
00:09:57]} {[%emt 00:00:18]} O-O {[%clk 00:12:53]} {[%emt 00:00:02]} 12. c3
{[%clk 00:09:00]} {[%emt 00:01:04]} Re8 {[%clk 00:12:48]} {[%emt 00:00:09]} 13.
Qg3 {[%clk 00:08:51]} {[%emt 00:00:14]} Bh4 {[%clk 00:12:23]} {[%emt 00:00:31]}
14. Qf4 {[%clk 00:07:55]} {[%emt 00:01:01]} f5 {[%clk 00:11:40]} {[%emt
00:00:48]} 15. O-O {[%clk 00:06:40]} {[%emt 00:01:20]} Rxe4 {[%clk 00:11:18]}
{[%emt 00:00:27]} 16. Qf3 {[%clk 00:06:31]} {[%emt 00:00:14]} Bg5 {[%clk
00:10:02]} {[%emt 00:01:20]} 17. Bxg5 {[%clk 00:06:10]} {[%emt 00:00:27]} Qxg5
{[%clk 00:10:04]} {[%emt 00:00:02]} 18. Na3 {[%clk 00:05:38]} {[%emt 00:00:37]}
Be6 {[%clk 00:09:45]} {[%emt 00:00:24]} 19. Rfe1 {[%clk 00:05:29]} {[%emt
00:00:14]} Bd5 {[%clk 00:09:42]} {[%emt 00:00:08]} 20. Qg3 {[%clk 00:04:56]}
{[%emt 00:00:37]} Qxg3 {[%clk 00:09:36]} {[%emt 00:00:12]} 21. hxg3 {[%clk
00:04:58]} {[%emt 00:00:03]} Rae8 {[%clk 00:09:32]} {[%emt 00:00:08]} 22. Rxe4
{[%clk 00:04:54]} {[%emt 00:00:10]} Re7 {[%emt 00:00:06]} 23. Re6 Rxe6 {[%clk
00:09:30]} 24. Nc2 {[%clk 00:04:40]} {[%emt 00:00:20]} Re2 {[%clk 00:09:18]}
{[%emt 00:00:16]} 25. Ne3 {[%clk 00:04:22]} {[%emt 00:00:23]} Be4 {[%clk
00:08:13]} {[%emt 00:01:10]} 26. b3 {[%clk 00:04:08]} {[%emt 00:00:19]} Nd5
{[%clk 00:07:38]} {[%emt 00:00:40]} 27. c4 {[%clk 00:03:40]} {[%emt 00:00:33]}
Nxe3 {[%clk 00:07:32]} {[%emt 00:00:10]} 28. fxe3 {[%clk 00:03:40]} {[%emt
00:00:05]} Rxg2+ {[%clk 00:07:11]} {[%emt 00:00:26]} 29. Kf1 {[%clk 00:03:32]}
{[%emt 00:00:14]} Rxg3 {[%clk 00:06:53]} {[%emt 00:00:22]} 30. Re1 {[%clk
00:03:29]} {[%emt 00:00:09]} h5 {[%clk 00:06:47]} {[%emt 00:00:11]} 31. Ke2
{[%clk 00:03:16]} {[%emt 00:00:17]} h4 {[%clk 00:06:45]} {[%emt 00:00:07]} 32.
Rf1 {[%clk 00:03:02]} {[%emt 00:00:20]} h3 {[%clk 00:06:30]} {[%emt 00:00:19]}
33. Rf4 {[%clk 00:03:02]} {[%emt 00:00:05]} g5 {[%clk 00:06:29]} {[%emt
00:00:06]} 34. Rxe4 {[%clk 00:01:47]} {[%emt 00:01:20]} fxe4 {[%clk 00:06:29]}
{[%emt 00:00:04]} 35. d5 {[%clk 00:01:50]} {[%emt 00:00:03]} h2 {[%clk
00:06:16]} {[%emt 00:00:18]} 36. Kf2 {[%clk 00:01:49]} {[%emt 00:00:05]} Rh3
{[%clk 00:06:11]} {[%emt 00:00:09]} 37. d6 {[%clk 00:01:50]} {[%emt 00:00:05]}
h1=Q {[%clk 00:06:09]} {[%emt 00:00:08]} 38. d7 {[%clk 00:01:49]} {[%emt
00:00:07]} Qf3+ {[%clk 00:06:11]} {[%emt 00:00:02]} 39. Kg1 {[%clk 00:01:36]}
{[%emt 00:00:18]} Rh1# {[%clk 00:06:13]} {[%emt 00:00:09]} 0-1

[Event "SS Manhem Chess Week 2022: Goteborg Open"]
[Site "Schackcentrum, Vegagatan 20, Gothenburg, Sweden"]
[Date "2022.08.12"]
[Round "1.6"]
[White "Kasib, Laith"]
[Black "Braby, Berth S"]
[Result "1-0"]
[TimeControl "15 minutes + 5 seconds per move from move one (Round 1 - 4) / 90 minutes + 30 seconds per move from move one (Round 5 - 8)"]
[WhiteTitle "FM"]
[WhiteFideId "4801059"]
[BlackFideId "1715836"]
[WhiteElo "2051"]
[BlackElo "1566"]

1. d4 {[%clk 00:15:07]} {[%emt 00:00:02]} d5 {[%clk 00:14:28]} {[%emt
00:00:42]} 2. c4 {[%clk 00:15:04]} {[%emt 00:00:08]} e6 {[%clk 00:14:32]}
{[%emt 00:00:01]} 3. Nc3 {[%clk 00:15:08]} {[%emt 00:00:01]} Nf6 {[%clk
00:14:35]} {[%emt 00:00:01]} 4. Bg5 {[%clk 00:15:12]} {[%emt 00:00:02]} Be7
{[%clk 00:14:38]} {[%emt 00:00:01]} 5. cxd5 {[%clk 00:15:15]} {[%emt 00:00:02]}
exd5 {[%clk 00:14:37]} {[%emt 00:00:06]} 6. Qc2 {[%clk 00:15:02]} {[%emt
00:00:18]} h6 {[%clk 00:14:32]} {[%emt 00:00:10]} 7. Bf4 {[%clk 00:15:00]}
{[%emt 00:00:07]} Bd6 {[%clk 00:14:09]} {[%emt 00:00:28]} 8. Bg3 {[%clk
00:14:35]} {[%emt 00:00:30]} c6 {[%clk 00:14:00]} {[%emt 00:00:14]} 9. e3
{[%clk 00:14:36]} {[%emt 00:00:03]} O-O {[%clk 00:13:25]} {[%emt 00:00:40]} 10.
Bd3 {[%clk 00:14:38]} {[%emt 00:00:03]} Na6 {[%emt 00:01:34]} 11. a3 {[%clk
00:13:59]} {[%emt 00:00:42]} b5 {[%clk 00:11:36]} {[%emt 00:00:27]} 12. b4
{[%clk 00:13:02]} {[%emt 00:01:01]} Nc7 {[%clk 00:10:49]} {[%emt 00:00:53]} 13.
Nf3 {[%clk 00:11:55]} {[%emt 00:01:11]} a5 {[%clk 00:10:31]} {[%emt 00:00:25]}
14. Rb1 {[%clk 00:11:58]} axb4 {[%clk 00:09:56]} {[%emt 00:00:40]} 15. axb4
{[%clk 00:12:01]} {[%emt 00:00:03]} Na6 {[%clk 00:09:25]} {[%emt 00:00:36]} 16.
Bxd6 {[%clk 00:12:04]} {[%emt 00:00:01]} Qxd6 {[%clk 00:09:29]} {[%emt
00:00:02]} 17. Qb3 {[%clk 00:12:07]} {[%emt 00:00:01]} Bg4 {[%clk 00:07:44]}
{[%emt 00:01:50]} 18. Ne5 {[%clk 00:12:11]} {[%emt 00:00:02]} Be6 {[%clk
00:07:03]} {[%emt 00:00:45]} 19. f4 {[%clk 00:10:40]} {[%emt 00:01:36]} Ng4
{[%clk 00:06:47]} {[%emt 00:00:20]} 20. Nd1 {[%clk 00:07:54]} {[%emt 00:02:52]}
Nxe5 {[%clk 00:06:42]} {[%emt 00:00:10]} 21. fxe5 {[%clk 00:07:34]} {[%emt
00:00:25]} Qd7 {[%clk 00:06:12]} {[%emt 00:00:35]} 22. O-O {[%clk 00:07:28]}
{[%emt 00:00:11]} Ra7 {[%clk 00:05:54]} {[%emt 00:00:24]} 23. Nc3 {[%clk
00:06:39]} {[%emt 00:00:52]} Rfa8 {[%clk 00:05:46]} {[%emt 00:00:14]} 24. Ne2
{[%clk 00:06:38]} {[%emt 00:00:06]} Nc7 {[%clk 00:05:40]} {[%emt 00:00:12]} 25.
Ng3 {[%clk 00:06:36]} {[%emt 00:00:07]} Ra3 {[%clk 00:05:21]} {[%emt 00:00:24]}
26. Qd1 {[%clk 00:05:47]} {[%emt 00:00:53]} Na6 {[%clk 00:04:53]} {[%emt
00:00:34]} 27. Rb2 {[%clk 00:03:50]} {[%emt 00:02:00]} Qe7 {[%clk 00:04:48]}
{[%emt 00:00:11]} 28. Qd2 {[%clk 00:03:23]} {[%emt 00:00:33]} Nc7 {[%clk
00:04:21]} {[%emt 00:00:32]} 29. h3 {[%clk 00:03:20]} {[%emt 00:00:07]} Qg5
{[%clk 00:04:17]} {[%emt 00:00:09]} 30. Kh2 {[%clk 00:03:21]} {[%emt 00:00:05]}
Ra1 {[%clk 00:03:26]} {[%emt 00:00:56]} 31. Bb1 {[%clk 00:02:58]} {[%emt
00:00:28]} h5 {[%clk 00:03:14]} {[%emt 00:00:16]} 32. e4 {[%clk 00:02:20]}
{[%emt 00:00:44]} Qxd2 {[%clk 00:03:16]} {[%emt 00:00:02]} 33. Rxd2 {[%clk
00:02:24]} {[%emt 00:00:02]} dxe4 {[%clk 00:02:49]} {[%emt 00:00:31]} 34. Nxe4
{[%clk 00:02:14]} {[%emt 00:00:15]} Bd5 {[%clk 00:02:37]} {[%emt 00:00:17]} 35.
Nd6 {[%clk 00:02:00]} {[%emt 00:00:20]} Rf8 {[%clk 00:02:22]} {[%emt 00:00:20]}
36. Bh7+ {[%clk 00:02:02]} {[%emt 00:00:03]} Kxh7 {[%clk 00:01:56]} {[%emt
00:00:28]} 37. Rxa1 {[%clk 00:02:07]} Ne6 {[%clk 00:00:16]} {[%emt 00:01:48]}
38. Ra7 {[%clk 00:02:07]} {[%emt 00:00:05]} Nf4 {[%clk 00:00:00]} 1-0

[Event "SS Manhem Chess Week 2022: Goteborg Open"]
[Site "Schackcentrum, Vegagatan 20, Gothenburg, Sweden"]
[Date "2022.08.12"]
[Round "1.7"]
[White "Josefsson, Ivar"]
[Black "Pettersson, Anders"]
[Result "0-1"]
[TimeControl "15 minutes + 5 seconds per move from move one (Round 1 - 4) / 90 minutes + 30 seconds per move from move one (Round 5 - 8)"]
[WhiteFideId "1766040"]
[BlackFideId "1715143"]
[WhiteElo "1565"]
[BlackElo "2042"]

1. d4 {[%clk 00:15:09]} {[%emt 02:05:32]} Nf6 {[%clk 00:15:01]} {[%emt
00:00:09]} 2. c4 {[%clk 00:15:13]} {[%emt 00:00:02]} c5 {[%clk 00:15:04]}
{[%emt 00:00:01]} 3. d5 {[%clk 00:15:16]} {[%emt 00:00:02]} a6 {[%clk
00:15:08]} {[%emt 00:00:01]} 4. Nc3 {[%clk 00:15:03]} {[%emt 00:00:18]} b5
{[%clk 00:15:06]} {[%emt 00:00:08]} 5. cxb5 {[%clk 00:14:52]} {[%emt 00:00:16]}
axb5 {[%clk 00:15:09]} {[%emt 00:00:01]} 6. Nxb5 {[%clk 00:14:55]} {[%emt
00:00:02]} e6 {[%clk 00:15:11]} {[%emt 00:00:03]} 7. Nc3 {[%clk 00:14:30]}
{[%emt 00:00:31]} exd5 {[%clk 00:14:41]} {[%emt 00:00:34]} 8. Nxd5 {[%clk
00:14:14]} {[%emt 00:00:22]} Bb7 {[%clk 00:14:41]} {[%emt 00:00:02]} 9. Bg5
{[%clk 00:13:59]} {[%emt 00:00:22]} Bxd5 {[%clk 00:12:35]} {[%emt 00:02:11]} 10.
Bxf6 {[%clk 00:13:04]} {[%emt 00:01:00]} Qxf6 {[%clk 00:12:37]} {[%emt
00:00:03]} 11. Qxd5 {[%clk 00:13:06]} {[%emt 00:00:03]} Qxb2 {[%clk 00:12:40]}
{[%emt 00:00:02]} 12. Qe4+ {[%clk 00:12:47]} {[%emt 00:00:24]} Be7 {[%clk
00:12:29]} {[%emt 00:00:16]} 13. Rb1 {[%clk 00:12:50]} {[%emt 00:00:03]} Qxa2
{[%clk 00:12:19]} {[%emt 00:00:15]} 14. Nf3 {[%clk 00:11:52]} {[%emt 00:01:03]}
d5 {[%clk 00:11:50]} {[%emt 00:00:34]} 15. Qf5 {[%clk 00:08:39]} {[%emt
00:03:19]} O-O {[%clk 00:11:51]} {[%emt 00:00:02]} 16. e3 {[%clk 00:08:43]}
{[%emt 00:00:02]} g6 {[%clk 00:11:30]} {[%emt 00:00:26]} 17. Qd3 {[%clk
00:08:45]} {[%emt 00:00:03]} c4 {[%clk 00:11:27]} {[%emt 00:00:08]} 18. Qd1
{[%clk 00:08:48]} {[%emt 00:00:01]} Qa5+ {[%clk 00:09:01]} {[%emt 00:02:32]} 19.
Ke2 {[%clk 00:08:19]} {[%emt 00:00:34]} Nc6 {[%clk 00:08:47]} {[%emt 00:00:18]}
20. Nd4 {[%clk 00:07:58]} {[%emt 00:00:26]} Nxd4+ {[%clk 00:08:10]} {[%emt
00:00:42]} 21. Qxd4 {[%clk 00:08:01]} {[%emt 00:00:01]} Bc5 {[%clk 00:07:42]}
{[%emt 00:00:33]} 22. Qb2 {[%clk 00:07:17]} {[%emt 00:00:49]} c3 {[%clk
00:07:21]} {[%emt 00:00:26]} 23. Qc2 {[%clk 00:07:03]} {[%emt 00:00:19]} Rfb8
{[%clk 00:07:03]} {[%emt 00:00:23]} 24. Rxb8+ {[%clk 00:06:56]} {[%emt
00:00:12]} Rxb8 {[%clk 00:07:07]} {[%emt 00:00:01]} 25. Kf3 {[%clk 00:06:57]}
{[%emt 00:00:04]} Rb2 {[%clk 00:06:56]} {[%emt 00:00:16]} 26. Qd3 {[%clk
00:06:42]} {[%emt 00:00:20]} Rd2 {[%clk 00:06:41]} {[%emt 00:00:20]} 0-1

[Event "SS Manhem Chess Week 2022: Goteborg Open"]
[Site "Schackcentrum, Vegagatan 20, Gothenburg, Sweden"]
[Date "2022.08.12"]
[Round "1.8"]
[White "Johansson, William"]
[Black "Karlsson, Stefan"]
[Result "0-1"]
[TimeControl "15 minutes + 5 seconds per move from move one (Round 1 - 4) / 90 minutes + 30 seconds per move from move one (Round 5 - 8)"]
[WhiteFideId "1744070"]
[BlackFideId "1771183"]
[WhiteElo "2015"]
[BlackElo "1560"]

1. d4 {[%clk 00:15:09]} {[%emt 00:00:01]} Nf6 {[%clk 00:15:09]} {[%emt
00:00:02]} 2. Nf3 {[%clk 00:15:12]} {[%emt 00:00:01]} d6 {[%clk 00:15:12]}
{[%emt 00:00:02]} 3. Nc3 {[%clk 00:15:07]} {[%emt 00:00:10]} g6 {[%clk
00:15:16]} {[%emt 00:00:01]} 4. e4 {[%clk 00:15:10]} {[%emt 00:00:02]} Bg7
{[%clk 00:15:20]} 5. h3 {[%clk 00:14:53]} {[%emt 00:00:23]} Nbd7 {[%clk
00:15:16]} {[%emt 00:00:09]} 6. Bf4 {[%clk 00:14:50]} {[%emt 00:00:08]} b6
{[%clk 00:15:14]} {[%emt 00:00:07]} 7. Bh2 {[%clk 00:14:02]} {[%emt 00:00:52]}
Bb7 {[%clk 00:15:03]} {[%emt 00:00:17]} 8. e5 {[%clk 00:13:52]} {[%emt
00:00:15]} Ne4 {[%clk 00:13:24]} {[%emt 00:01:43]} 9. Nxe4 {[%clk 00:13:34]}
{[%emt 00:00:24]} Bxe4 {[%clk 00:13:28]} {[%emt 00:00:01]} 10. e6 {[%clk
00:13:23]} {[%emt 00:00:15]} fxe6 {[%clk 00:10:34]} {[%emt 00:02:59]} 11. Ng5
{[%clk 00:13:26]} {[%emt 00:00:03]} Bf5 {[%clk 00:08:23]} {[%emt 00:02:16]} 12.
g4 {[%clk 00:13:19]} {[%emt 00:00:12]} Bh6 {[%clk 00:08:21]} {[%emt 00:00:07]}
13. gxf5 {[%clk 00:13:04]} {[%emt 00:00:20]} Bxg5 {[%clk 00:08:25]} 14. fxe6
{[%clk 00:13:08]} {[%emt 00:00:01]} Nf6 {[%clk 00:08:12]} {[%emt 00:00:18]} 15.
Bb5+ {[%clk 00:12:50]} {[%emt 00:00:23]} Kf8 {[%clk 00:08:10]} {[%emt
00:00:07]} 16. Bc6 {[%clk 00:12:42]} {[%emt 00:00:13]} Rb8 {[%clk 00:08:13]}
{[%emt 00:00:02]} 17. O-O {[%clk 00:11:54]} {[%emt 00:00:53]} Kg7 {[%emt
00:01:03]} 18. Kh1 {[%clk 00:11:34]} Nh5 {[%clk 00:07:12]} {[%emt 00:00:31]} 19.
Qg4 {[%clk 00:10:51]} {[%emt 00:00:49]} Bh6 {[%clk 00:06:23]} {[%emt 00:00:55]}
20. f4 {[%clk 00:10:31]} {[%emt 00:00:25]} Nf6 {[%clk 00:06:00]} {[%emt
00:00:28]} 21. Qg2 {[%clk 00:10:16]} {[%emt 00:00:20]} Rg8 {[%clk 00:05:31]}
{[%emt 00:00:35]} 22. Bg3 {[%clk 00:07:54]} {[%emt 00:02:26]} Nh5 {[%clk
00:04:53]} {[%emt 00:00:44]} 23. f5 {[%clk 00:06:11]} {[%emt 00:01:48]} Kh8
{[%clk 00:04:57]} 24. f6 {[%clk 00:03:55]} {[%emt 00:02:21]} Nxf6 {[%clk
00:04:31]} {[%emt 00:00:31]} 25. Rae1 {[%clk 00:03:58]} {[%emt 00:00:02]} Qf8
{[%clk 00:04:12]} {[%emt 00:00:23]} 26. d5 {[%clk 00:03:47]} {[%emt 00:00:17]}
Qg7 {[%clk 00:03:56]} {[%emt 00:00:21]} 27. Bf2 {[%clk 00:03:44]} {[%emt
00:00:07]} Nh5 {[%emt 00:01:10]} 28. Re4 {[%clk 00:03:16]} Rbf8 {[%clk
00:03:08]} {[%emt 00:00:22]} 29. Kg1 {[%clk 00:02:37]} {[%emt 00:00:43]} Nf4
{[%clk 00:02:48]} {[%emt 00:00:25]} 30. Bd4 {[%clk 00:01:47]} {[%emt 00:00:55]}
Nxg2 {[%clk 00:02:30]} {[%emt 00:00:24]} 31. Bxg7+ {[%clk 00:01:48]} {[%emt
00:00:04]} Bxg7 {[%clk 00:02:34]} {[%emt 00:00:01]} 32. Rf7 {[%clk 00:01:00]}
{[%emt 00:00:53]} Ne3 {[%clk 00:02:25]} {[%emt 00:00:14]} 33. Rxe3 {[%clk
00:00:22]} {[%emt 00:00:43]} Bd4 {[%clk 00:02:29]} {[%emt 00:00:01]} 34. Kf2
{[%clk 00:00:23]} {[%emt 00:00:04]} Rxf7+ {[%clk 00:02:30]} {[%emt 00:00:04]}
35. exf7 {[%clk 00:00:26]} {[%emt 00:00:02]} Rf8 {[%clk 00:02:30]} {[%emt
00:00:05]} 36. Be8 {[%clk 00:00:29]} {[%emt 00:00:02]} Bxe3+ {[%clk 00:02:34]}
{[%emt 00:00:02]} 37. Kxe3 {[%clk 00:00:33]} Kg7 {[%clk 00:02:38]} 38. Kd4
{[%clk 00:00:23]} {[%emt 00:00:15]} Rxf7 {[%clk 00:02:35]} {[%emt 00:00:09]} 39.
Bxf7 {[%clk 00:00:26]} {[%emt 00:00:01]} Kxf7 {[%clk 00:02:39]} 40. Kc4 {[%clk
00:00:29]} {[%emt 00:00:02]} a6 {[%clk 00:02:42]} {[%emt 00:00:02]} 41. Kd4
{[%clk 00:00:12]} {[%emt 00:00:22]} Kf6 {[%clk 00:02:39]} {[%emt 00:00:08]} 42.
Ke4 {[%clk 00:00:15]} {[%emt 00:00:03]} h6 {[%clk 00:02:34]} {[%emt 00:00:10]}
43. h4 {[%clk 00:00:08]} {[%emt 00:00:12]} e6 {[%clk 00:02:36]} {[%emt
00:00:03]} 44. c4 {[%clk 00:00:11]} {[%emt 00:00:02]} e5 {[%clk 00:02:38]}
{[%emt 00:00:03]} 45. a4 {[%clk 00:00:08]} {[%emt 00:00:09]} a5 {[%clk
00:02:40]} {[%emt 00:00:03]} 46. b3 {[%clk 00:00:11]} g5 {[%clk 00:02:42]}
{[%emt 00:00:03]} 47. h5 {[%clk 00:00:14]} {[%emt 00:00:02]} g4 {[%clk
00:02:45]} {[%emt 00:00:03]} 48. Ke3 {[%clk 00:00:15]} {[%emt 00:00:05]} Kg5
{[%clk 00:02:47]} {[%emt 00:00:02]} 49. Kf2 {[%clk 00:00:17]} {[%emt 00:00:03]}
Kxh5 {[%clk 00:02:50]} {[%emt 00:00:02]} 50. Kg3 {[%clk 00:00:21]} Kg5 {[%clk
00:02:54]} {[%emt 00:00:01]} 51. Kg2 {[%clk 00:00:25]} Kf4 {[%clk 00:02:58]} 52.
Kf2 {[%clk 00:00:30]} h5 {[%clk 00:03:02]} 53. Kg2 {[%clk 00:00:34]} h4 {[%clk
00:03:06]} 54. Kh2 {[%clk 00:00:39]} h3 {[%clk 00:03:09]} {[%emt 00:00:02]} 55.
Kh1 {[%clk 00:00:34]} {[%emt 00:00:10]} g3 {[%clk 00:03:03]} {[%emt 00:00:11]}
56. Kg1 {[%clk 00:00:22]} {[%emt 00:00:17]} Ke3 {[%clk 00:03:05]} {[%emt
00:00:02]} 57. Kf1 {[%clk 00:00:23]} {[%emt 00:00:04]} Kf3 {[%clk 00:03:05]}
{[%emt 00:00:06]} 58. Kg1 {[%clk 00:00:25]} {[%emt 00:00:04]} g2 {[%clk
00:03:09]} 0-1

[Event "SS Manhem Chess Week 2022: Goteborg Open"]
[Site "Schackcentrum, Vegagatan 20, Gothenburg, Sweden"]
[Date "2022.08.12"]
[Round "1.9"]
[White "Al Saab, Ranny"]
[Black "Asbrink, Adam"]
[Result "0-1"]
[TimeControl "15 minutes + 5 seconds per move from move one (Round 1 - 4) / 90 minutes + 30 seconds per move from move one (Round 5 - 8)"]
[WhiteFideId "1768360"]
[BlackFideId "1767410"]
[WhiteElo "1516"]
[BlackElo "1977"]

1. e4 {[%clk 00:15:08]} {[%emt 00:00:02]} c6 {[%clk 00:15:08]} {[%emt
00:00:02]} 2. d4 {[%clk 00:15:12]} {[%emt 00:00:02]} d5 {[%clk 00:15:11]}
{[%emt 00:00:02]} 3. exd5 {[%clk 00:15:15]} {[%emt 00:00:01]} cxd5 {[%clk
00:15:12]} {[%emt 00:00:04]} 4. Bf4 {[%clk 00:15:19]} {[%emt 00:00:02]} Nc6
{[%clk 00:14:09]} {[%emt 00:01:08]} 5. Nc3 {[%clk 00:15:16]} {[%emt 00:00:08]}
Bf5 {[%clk 00:14:01]} {[%emt 00:00:12]} 6. Bd3 {[%clk 00:15:00]} {[%emt
00:00:21]} Bxd3 {[%clk 00:13:40]} {[%emt 00:00:27]} 7. Qxd3 {[%clk 00:15:03]}
{[%emt 00:00:02]} e6 {[%clk 00:13:36]} {[%emt 00:00:10]} 8. Nf3 {[%clk
00:14:39]} {[%emt 00:00:28]} Nf6 {[%clk 00:12:59]} {[%emt 00:00:42]} 9. O-O
{[%clk 00:13:53]} {[%emt 00:00:51]} a6 {[%clk 00:12:38]} {[%emt 00:00:26]} 10.
h3 {[%clk 00:12:07]} {[%emt 00:01:51]} Be7 {[%clk 00:11:19]} {[%emt 00:01:23]}
11. Rfe1 {[%clk 00:11:35]} {[%emt 00:00:37]} O-O {[%clk 00:11:20]} {[%emt
00:00:04]} 12. Re3 {[%clk 00:10:12]} {[%emt 00:01:28]} Rc8 {[%clk 00:11:09]}
{[%emt 00:00:16]} 13. a3 {[%clk 00:08:59]} {[%emt 00:01:18]} Na5 {[%clk
00:10:01]} {[%emt 00:01:13]} 14. Rae1 {[%clk 00:08:10]} {[%emt 00:00:52]} Nc4
{[%clk 00:09:56]} {[%emt 00:00:12]} 15. R3e2 {[%clk 00:08:11]} {[%emt
00:00:02]} Nxb2 {[%clk 00:09:56]} {[%emt 00:00:07]} 16. Qe3 {[%clk 00:07:51]}
{[%emt 00:00:25]} Nc4 {[%clk 00:09:50]} {[%emt 00:00:11]} 17. Qd3 {[%clk
00:07:52]} {[%emt 00:00:02]} Bxa3 {[%clk 00:09:38]} {[%emt 00:00:20]} 18. Bg5
{[%clk 00:07:06]} {[%emt 00:00:49]} Nb2 {[%clk 00:07:54]} {[%emt 00:01:53]} 19.
Qe3 {[%clk 00:06:33]} {[%emt 00:00:36]} Bb4 {[%clk 00:07:53]} {[%emt 00:00:05]}
20. Nh2 {[%clk 00:02:14]} {[%emt 00:04:24]} Rxc3 {[%clk 00:07:37]} {[%emt
00:00:22]} 21. Qf4 {[%clk 00:02:18]} Be7 {[%clk 00:07:26]} {[%emt 00:00:15]} 22.
Rb1 {[%clk 00:02:17]} {[%emt 00:00:07]} Nc4 {[%clk 00:04:42]} {[%emt 00:02:49]}
23. Rxb7 {[%clk 00:02:19]} {[%emt 00:00:02]} Nd6 {[%clk 00:03:59]} {[%emt
00:00:49]} 24. Rxe7 {[%clk 00:00:25]} {[%emt 00:01:58]} Qxe7 {[%clk 00:03:55]}
{[%emt 00:00:09]} 25. Bxf6 {[%clk 00:00:27]} {[%emt 00:00:04]} Qxf6 {[%clk
00:02:55]} {[%emt 00:01:05]} 26. Qxd6 {[%clk 00:00:30]} {[%emt 00:00:01]} Qxd4
{[%clk 00:02:56]} {[%emt 00:00:04]} 27. Qxa6 {[%clk 00:00:25]} {[%emt
00:00:11]} Qd1+ {[%clk 00:02:47]} {[%emt 00:00:13]} 28. Nf1 {[%clk 00:00:28]}
{[%emt 00:00:02]} Rxc2 {[%clk 00:02:48]} {[%emt 00:00:04]} 29. Rxc2 {[%clk
00:00:09]} {[%emt 00:00:24]} Qxc2 {[%clk 00:02:50]} {[%emt 00:00:03]} 30. Ng3
{[%clk 00:00:10]} {[%emt 00:00:05]} g6 {[%clk 00:02:48]} {[%emt 00:00:06]} 31.
Qd6 {[%clk 00:00:12]} {[%emt 00:00:03]} Qb2 {[%clk 00:02:10]} {[%emt 00:00:43]}
32. Qf4 {[%clk 00:00:12]} {[%emt 00:00:03]} Ra8 {[%clk 00:02:09]} {[%emt
00:00:08]} 33. Kh2 {[%clk 00:00:14]} {[%emt 00:00:02]} Ra2 {[%clk 00:02:10]}
{[%emt 00:00:04]} 34. Nh1 {[%clk 00:00:10]} {[%emt 00:00:09]} Kg7 {[%clk
00:02:06]} {[%emt 00:00:09]} 35. Qg3 {[%clk 00:00:11]} {[%emt 00:00:04]} Ra3
{[%clk 00:01:44]} {[%emt 00:00:28]} 36. Qf4 {[%clk 00:00:13]} {[%emt 00:00:01]}
Qf6 {[%clk 00:01:40]} {[%emt 00:00:10]} 37. Qd2 {[%clk 00:00:15]} {[%emt
00:00:04]} Qe5+ {[%clk 00:01:38]} {[%emt 00:00:07]} 38. g3 {[%clk 00:00:16]}
{[%emt 00:00:02]} Rb3 {[%clk 00:01:20]} {[%emt 00:00:25]} 39. Qd1 {[%clk
00:00:13]} {[%emt 00:00:07]} Rb2 {[%clk 00:01:21]} {[%emt 00:00:05]} 40. Qf3
{[%clk 00:00:17]} {[%emt 00:00:01]} f6 {[%clk 00:01:18]} {[%emt 00:00:09]} 41.
Kg2 {[%clk 00:00:16]} {[%emt 00:00:06]} Qe4 {[%clk 00:01:21]} {[%emt 00:00:02]}
42. Qxe4 {[%clk 00:00:19]} {[%emt 00:00:02]} dxe4 {[%clk 00:01:24]} {[%emt
00:00:02]} 43. g4 {[%clk 00:00:23]} f5 {[%clk 00:01:20]} {[%emt 00:00:09]} 44.
Ng3 {[%clk 00:00:21]} {[%emt 00:00:07]} e3 {[%clk 00:01:21]} {[%emt 00:00:04]}
45. Kf1 {[%clk 00:00:23]} {[%emt 00:00:01]} Rxf2+ {[%clk 00:01:23]} {[%emt
00:00:04]} 46. Ke1 {[%clk 00:00:26]} {[%emt 00:00:02]} 0-1